Cogmind - Beta 14 @@@ ROGUE MODE // 2025.03.31 @ 18:07:03 Player: golanco Result: Destroyed by Y-45 Defender with Heavy Assault Rifle Performance ------------- Evolutions (1) 500 Regions Visited (2) 400 Robots Destroyed (63) 315 Value Destroyed (967) 967 Prototype IDs (0) 0 Alien Tech Used (0) 0 Bonus (45) 45 TOTAL SCORE: 2227 Bonus ------- High Alert Combat Kills 45 Cogmind --------- Core Integrity 0/400 Matter 236/300 Energy 100/100 System Corruption 2% Temperature Cool (9) Movement Core (1400) Ox27 Location -9/Materials Parts ------- > --- POWER (1) -------- (None) > --- PROPULSION (2) --- (None) > --- UTILITY (4) ------ Huge Storage Unit Hacking Suite > --- WEAPON (2) ------- Rocket Launcher > --- INVENTORY (25) --- Improved Ion Engine Improved Ion Engine VTOL Module Structural Scanner Structural Scanner Signal Interpreter Heavy Hammer Peak State ------------ > --- POWER ------------ Improved Ion Engine > --- PROPULSION ------- Wheel Wheel > --- UTILITY ---------- Large Storage Unit Sensor Array Core Shielding Hacking Suite > --- WEAPON ----------- Light Assault Rifle Rocket Launcher > --- INVENTORY -------- Improved Ion Engine Improved Ion Engine VTOL Module Structural Scanner Structural Scanner EM Shotgun EM Shotgun Grenade Launcher Grenade Launcher Grenade Launcher [Rating: 14] Favorites ----------- Power Improved Ion Engine Engine Improved Ion Engine Propulsion Wheel Wheel Wheel Utility Core Shielding Device Sensor Array Storage Large Storage Unit Hackware Hacking Suite Protection Core Shielding Weapon Light Assault Rifle Energy Gun Small Laser Ballistic Gun Light Assault Rifle Launcher Rocket Launcher Impact Weapon Heavy Hammer Build | -11 -10 -9 ------- Run | Yrd Mat Mat Slots Evolved 2 | . . 2 Power . | . . . Propulsion . | . . . Utility 2 | . . 2 Weapon . | . . . Parts Attached 30 | 6 9 15 Power 3 | 1 . 2 Engine 3 | 1 . 2 Core . | . . . Reactor . | . . . Propulsion 9 | 2 5 2 Treads . | . . . Leg . | . . . Wheel 9 | 2 5 2 Hover . | . . . Flight . | . . . Utility 6 | 1 2 3 Device 1 | . . 1 Storage 3 | 1 1 1 Processor . | . . . Hackware 1 | . . 1 Protection 1 | . 1 . Artifact . | . . . Weapon 12 | 2 2 8 Energy Gun 4 | 1 1 2 Energy Cannon . | . . . Ballistic Gun 3 | 1 1 1 Ballistic Cannon . | . . . Launcher 4 | . . 4 Special Weapon . | . . . Impact Weapon 1 | . . 1 Slashing Weapon . | . . . Piercing Weapon . | . . . Special Melee Weapon . | . . . Unidentified Prototypes . | . . . Parts Lost 20 | . 7 13 Power 2 | . 1 1 Propulsion 8 | . 4 4 Utility 2 | . . 2 Weapon 8 | . 2 6 Highest Loss Streak 4 | . 3 4 To Critical Strikes . | . . . Average Slot Usage (%) 77 | . 76 78 Engine 5 | . 3 7 Wheel 15 | . 15 15 Device 2 | . . 4 Storage 12 | . 14 11 Hackware 5 | . . 11 Protection 11 | . 13 8 Energy Gun 9 | . 13 5 Ballistic Gun 10 | . 13 7 Launcher 2 | . . 4 Peak Build Rating 14 | 6 7 14 Average Rating 8 | 4 5 11 On Entrance 4 | . 6 6 Naked Turns . | . . . Heaviest Build 94 | 12 28 94 Greatest Support 26 | 26 26 20 Greatest Overweight (x) 28 | . 7 28 Average Overweight (x) 2 | . 1 4 Largest Inventory Capacity 25 | 8 15 25 Average Capacity 18 | 6 14 23 Most Carried 12 | 2 8 12 Average Carried 7 | . 4 10 Final Capacity 25 | 8 15 25 Final Carried 7 | 2 7 7 Class Distribution -------------------- 100% | Mutant Dominant Class ---------------- Mutant | -10/Materials Mutant | -9/Materials Resources | -11 -10 -9 ----------- Run | Yrd Mat Mat Matter Collected 704 | 262 172 270 Remotely . | . . . Salvage Created 1794 | . 748 1046 Parts 118 | . 47 71 Haulers Intercepted 4 | . 2 2 Recyclers Shooed 2 | . 1 1 Parts Field Recycled . | . . . Retrieved Matter . | . . . Parts Self-Destructed . | . . . Prevented . | . . . Kills | -11 -10 -9 ------- Run | Yrd Mat Mat Combat Hostiles Destroyed 35 | . 11 24 Guns 23 | . 11 12 AOE 12 | . . 12 Classes Destroyed 11 | . 7 4 Worker 9 | . 3 6 Builder 1 | . . 1 Tunneler 1 | . . 1 Hauler 4 | . 2 2 Recycler 4 | . 2 2 Operator 4 | . 2 2 Watcher 5 | . 3 2 Swarmer 19 | . 5 14 Grunt 14 | . 6 8 Brawler 1 | . . 1 Sentry 1 | . . 1 Best Kill Streak 8 | . 4 8 Combat Bots Only 6 | . 4 6 Max Kills in Single Turn 4 | . 2 4 Gunslinging 1 | . 1 . Exploded 4 | . . 4 Melee . | . . . Uniques/NPCs Destroyed . | . . . Combat | -11 -10 -9 -------- Run | Yrd Mat Mat Hostile Shots Fired 237 | . 89 148 Missed 68 | . 26 42 Damage Taken 1845 | . 671 1174 Core 558 | . 148 410 Absorbed by Shields . | . . . Redirected to Shielding 45 | . 31 14 Core Remaining (%) 70 | 100 40 . Volleys Fired 206 | 2 98 106 Largest 2 | 2 2 2 Hottest 78 | 60 60 78 Shots Fired 341 | 4 183 154 Gun 328 | 4 183 141 Cannon . | . . . Launcher 13 | . . 13 Special . | . . . Kinetic 170 | 2 90 78 Thermal 95 | 2 93 . Explosive 13 | . . 13 Electromagnetic 63 | . . 63 Robot Hit Streak 12 | 3 12 11 Robot Miss Streak 6 | 1 5 6 Penetration Max . | . . . Secondary Targets 4 | . 2 2 Max Gunslinging Chain 1 | . 1 1 Shots Hit Robots 210 | 3 108 99 Core Hits 108 | 1 45 62 Critical Kills . | . . . Critical Parts Destroyed . | . . . Critical Strikes . | . . . Melee Attacks . | . . . Impact . | . . . Slashing . | . . . Piercing . | . . . Sneak Attacks . | . . . Combat Hostiles . | . . . Follow-up Attacks . | . . . Damage Inflicted 3088 | 29 1039 2020 Guns 2114 | 29 1039 1046 Cannons . | . . . Explosions 953 | . . 953 Melee . | . . . Ramming 21 | . . 21 Kinetic 835 | 8 450 377 Thermal 774 | 21 589 164 Explosive 789 | . . 789 Electromagnetic 669 | . . 669 Impact . | . . . Slashing . | . . . Piercing . | . . . Highest Corruption 2 | . . 2 Average Corruption 2 | . . 2 Corruption Purged . | . . . Corruption Blocked . | . . . Effects 14 | . . 14 Message Errors 6 | . . 6 Matter Fused 2 | . . 2 Energy Discharges 1 | . . 1 Data Loss (minor) 2 | . . 2 Data Loss (major) 1 | . . 1 Misfires 2 | . . 2 Overload Shots . | . . . Overflow Damage 59 | . . 59 Projectiles . | . . . Explosions 59 | . . 59 Melee . | . . . Knockbacks . | . . . Impact . | . . . Kinetic . | . . . Secondary . | . . . Self-Inflicted Damage 183 | . . 183 Shots 6 | . . 6 Rammed 2 | . . 2 Targets Rammed 2 | . . 2 Kicked . | . . . Crushed . | . . . Highest Temperature 85 | 20 85 56 Average Temperature 16 | 11 15 17 Received Heat Transfer 417 | . 204 213 Siege Activations . | . . . Robots Corrupted . | . . . Combat Hostiles . | . . . Parts Fried 1 | . . 1 Impact Corruptions . | . . . Robots Melted . | . . . Combat Hostiles . | . . . Parts Melted 1 | . 1 . Heat Transferred 1525 | 50 1325 150 Parts Sabotaged . | . . . Parts Stolen . | . . . Parts Stripped . | . . . Power Chain Reactions 2 | . . 2 Alert | -11 -10 -9 ------- Run | Yrd Mat Mat Peak Influence 566 | . 244 566 Initial 3 | . . 3 Average 143 | . 72 217 Maximum Alert Level 2 | . 1 2 Low Security (%) 78 | 100 97 60 Level 1 10 | . 2 19 Level 2 10 | . . 20 Level 3 . | . . . Level 4 . | . . . Level 5 . | . . . High Security . | . . . Max Security . | . . . Squads Dispatched 5 | . 2 3 Investigation . | . . . Extermination . | . . . Reinforcement 5 | . 2 3 Assault . | . . . Garrison . | . . . Intercept . | . . . Searches Triggered . | . . . Construction Impeded . | . . . Haulers Reinforced . | . . . Active Scanning Responses . | . . . Cargo Convoy Interrupts . | . . . Stealth | -11 -10 -9 --------- Run | Yrd Mat Mat Distress Signals 3 | . 1 2 Communications Jammed . | . . . Distress Signals . | . . . Times Spotted 75 | . 32 43 Peak Tracking Total 7 | . 5 7 Tactical Retreats 7 | . 1 6 Traps | -11 -10 -9 ------- Run | Yrd Mat Mat Traps Triggered 2 | . 1 1 Indirectly . | . . . Trap Hack Attempts . | . . . Triggered . | . . . Disarmed . | . . . Reprogrammed . | . . . Reused . | . . . Traps Extracted . | . . . Installed . | . . . Triggered . | . . . Machines | -11 -10 -9 ---------- Run | Yrd Mat Mat Machines Disabled 1 | . . 1 Max in Single Turn 1 | . . 1 Machines Repaired . | . . . Machines Dismantled . | . . . Machines Sabotaged . | . . . Overloaded Fab Kills . | . . . Hacking | -11 -10 -9 --------- Run | Yrd Mat Mat Machines Accessed 7 | . 3 4 Terminals 5 | . 2 3 Fabricators . | . . . Repair Stations . | . . . Recycling Units 2 | . 1 1 Scanalyzers . | . . . Garrison Access . | . . . Total Hacks 19 | . 10 9 Successful 9 | . 4 5 Failed 10 | . 6 4 Catastrophic 1 | . 1 . Database Lockouts . | . . . Manual 3 | . 3 . Terminals 15 | . 8 7 Fabricators . | . . . Repair Stations . | . . . Recycling Units 4 | . 2 2 Scanalyzers . | . . . Garrison Access . | . . . Terminal Hacks 7 | . 3 4 Alert Level 2 | . 2 . Unreport Threat 1 | . 1 . Locate Traps 2 | . . 2 Transport Status 1 | . . 1 Hauler Manifests 1 | . . 1 Fabricator Hacks . | . . . Repair Station Hacks . | . . . Recycling Unit Hacks 2 | . 1 1 Retrieve Components 2 | . 1 1 Scanalyzer . | . . . Garrison Access Hacks . | . . . Unauthorized Hacks . | . . . Terminals . | . . . Fabricators . | . . . Repair Stations . | . . . Recycling Units . | . . . Scanalyzers . | . . . Garrison Access . | . . . Data Cores Recovered 1 | . . 1 Used . | . . . Hacking Detections 3 | . 2 1 Full Trace Events . | . . . Feedback Events . | . . . Feedback Blocked . | . . . Robot Schematics Acquired . | . . . Robots Built . | . . . Authchips . | . . . Time . | . . . Total Robot Build Rating . | . . . Part Schematics Acquired . | . . . Parts Built . | . . . Authchips . | . . . Time . | . . . Total Part Build Rating . | . . . Parts Repaired . | . . . Time . | . . . Parts Recycled . | . . . Recycled Matter . | . . . Retrieved Matter . | . . . Retrieved Components 3 | . 1 2 Parts Scanalyzed . | . . . Part Schematics Acquired . | . . . Parts Damaged . | . . . Bothacking | -11 -10 -9 ------------ Run | Yrd Mat Mat Used RIF Installer . | . . . Robots Hacked . | . . . Non-combat . | . . . Combat . | . . . Robot Hacks Applied . | . . . Relay Couplers Released . | . . . Fabnet Peak Effective % . | . . . Robots Rewired . | . . . Allies Hacked . | . . . Hacks Repelled . | . . . Allies | -11 -10 -9 -------- Run | Yrd Mat Mat Total Allies . | . . . Largest Group . | . . . Highest-Rated Group . | . . . Highest-Rated Ally . | . . . Total Orders . | . . . Ally Attacks . | . . . Total Damage . | . . . Kills . | . . . Allies Corrupted . | . . . Allies Melted . | . . . Intel | -11 -10 -9 ------- Run | Yrd Mat Mat Robot Analysis Total . | . . . Derelict Logs Recovered . | . . . Drone Launches . | . . . Drone Recoveries . | . . . Exploration | -11 -10 -9 ------------- Run | Yrd Mat Mat Turns Passed 2902 | 55 1407 1440 Spaces Moved 1418 | 45 730 643 Core 159 | 3 133 23 Treads . | . . . Legs . | . . . Wheels 1259 | 42 597 620 Hover . | . . . Flight . | . . . Fastest Speed 50 | 50 90 95 Average Speed 161 | 87 150 179 Slowest Speed 1450 | 90 400 1450 Overloaded Moves . | . . . Propulsion Burnouts . | . . . Robots Hopped . | . . . Cave-ins Triggered . | . . . Exploration Rate (%) 45 | 5 82 49 Regions Visited 2 Branch Regions . Pre-discovered Areas . | . . . Known Exits Taken . | . . . Unknown Exits Taken 2 | 1 1 . Scrap Searched . | . . . Spaces Dug . | . . . Terrain Destroyed 128 | . . 128 Melee . | . . . Projectile . | . . . AOE 128 | . . 128 Terrain Rammed . | . . . Walls Destroyed . | . . . Machines Disabled . | . . . Actions | -11 -10 -9 --------- Run | Yrd Mat Mat Total 1716 | 54 868 794 Wait 33 | . 21 12 Move 1416 | 44 729 643 Hop . | . . . Pick Up 21 | 2 9 10 Fast Attach 14 | 6 4 4 Attach 9 | . 3 6 Detach . | . . . Swap 7 | . 2 5 Drop 8 | . 2 6 Fire 206 | 2 98 106 Melee . | . . . Ram 2 | . . 2 Kick . | . . . Crush . | . . . Escape Stasis . | . . . Rewire . | . . . Trap . | . . . Miscellaneous . | . . . Route ------- -11/Scrapyard -10/Materials (discovered 4 exits: *Mat / [*Min x2] / [*Sub]) -9/Materials (discovered 1 exit: [*Min]) History --------- Turn | Location | Event 29 | -11/Scrapyard | Discovered new exit (range 16) 56 | -11/Scrapyard | Entered Materials 100 | -10/Materials | Discovered new exit (range 8) 253 | -10/Materials | Discovered new exit (range 4) 308 | -10/Materials | Build established: Mutant 505 | -10/Materials | Core integrity fell below 50% 579 | -10/Materials | Discovered new exit (range 10) 1012 | -10/Materials | Discovered new exit (range 12) 1277 | -10/Materials | Lost 3 parts (2n1w) 1463 | -10/Materials | Entered another Materials area 1463 | -9/Materials | Evolved 2 slots: Utility x2 1814 | -9/Materials | Discovered new exit (range 11) 2492 | -9/Materials | Lost 4 parts (1p2n1w) 2664 | -9/Materials | Core integrity fell below 50% 2674 | -9/Materials | Lost 4 parts (1n1u2w) 2687 | -9/Materials | Core integrity fell below 20% 2903 | -9/Materials | Destroyed by Y-45 Defender with Heavy Assault Rifle Last Messages --------------- U-05 Engineer lays Concrete. R-06 Scavenger collects Lgt. Assault Rifle. U-05 Engineer lays Concrete. U-05 Engineer builds a Wall. U-05 Engineer lays Concrete. U-05 Engineer builds a Wall. U-05 Engineer builds a Door. U-05 Engineer builds a Wall. R-06 Scavenger collects Lgt. Assault Rifle. U-05 Engineer builds a Wall. K-01 Serf collects debris. U-05 Engineer lays Concrete. System corrupted: Component data lost. U-05 Engineer lays Concrete. K-01 Serf collects debris. U-05 Engineer lays Concrete. K-01 Serf collects debris. U-05 Engineer builds a Wall. K-01 Serf collects debris. U-05 Engineer lays Concrete. Map ----- +----------------------------------------------------+ | ?????????????????????????????????????????????????? | | ?????????????????????????????????????????????????? | | ?????????????????????????????????????????????????? | | ????????????######???????????????????????????????? | | ?????????# """ ???????????????????????????????? | | ?????????? "T" ???????????????????????????????? | | ?????????? ???????????????????????????????? | | ??????????? ???????????????????????????????? | | ???????????? ?????????####??????????????????? | | ?????????#? """ ???????? +??????????????????? | | ?????????# """ ###???? #??????????????????? | | ?????? ??# """ ##?? #??????????????????? | | ????? # #### #??????????? ??????? | | ???? + # +# #?????????? ????? | | ?????# =%*% # #?????????? ?? | | ?????# + #?????????? | | ???? = # #?????????? | | ?????# # # ####+#### #?????????? | | ?????????# # ## #?????????? | | ?????????# # ## ! #???? ????? | | ?????????# # ## #???? ???# ] | | ?????????# # # #????#+#??# | | ?????????# # # ######????# #### """ | | ?????????# # # #????????## """ | | ?????????######"# ############# """ | | ??????????????# # Y @ a | | ??????????????# # ############# | | ??????????????#"" # #???????# """ | | ??????????? " # #???????# """ #? | | ?????????# " # ##???????# """ #? | | ?????????# """"### ##????????# #? | | ?????????+ ## ###?????????# ^ #? | | ?????????# "T" ?######???????????# "" ## | | ?????????# ??????????????????# T" # | | ??????????######??????????????????# "" !#= | | ??????????????????????????????????# =%#= | | ??????????????????????????????????# *%+* | | ??????????????????????????????????# ########+#+#= | | ??????????????????????????????????# ????????!%=#= | | ??????????????????????????????????# ??????? =[# | | ??????????????????????????????????# ??????"""" # | | ?????# ?????????????????????????# ????# """" # | | ?????# ^????????????????????????????????# """" # | | ????## #???????????????????????????????######## | | ???" #?????????????????????????????????????## | | ??#"" #??????????????????????????????????????? | | ??#|| #??????????????????????????????????????? | | ??#"" < #??????????????????????????????????????? | | ??#|| ???????????????????????????????????????? | | ???"" ???????#???????????????????????????????? | +----------------------------------------------------+ Best States ------------- Heat Dissipation 28 Energy Generation 12 Energy Capacity 265 Matter Stores 300 Matter Capacity 300 Sight Range 16 Robot Scan Range 14 Terrain Scan Density 10 Core Shielding 20 Evasion (%) 42 Offensive Hacking 10 Item Schematics ----------------- None Robot Schematics ------------------ None Fabricated ------------ Nothing Alien Tech Used ----------------- None Achievements -------------- None Challenges ------------ None Game ------ Seed ArchitectAnalysisSpear Manual? 0 Play Time 00:17:42 Cumulative 32.4 hours Start 2025.03.31 @ 17:49:56 End 2025.03.31 @ 18:07:03 Sessions 1 Manual Loads 0 Difficulty Rogue Special Mode None Game No. 88 Rogue 88 Adventurer 0 Explorer 0 Win Type - Total 0 Types 0/0/0/0/0/0/0/0/0 Lore% 16 Gallery% 24 Achievement% 25 Wizard Run 0 Options --------- Layout 1 ASCII 0 Keyboard 0 Movement Mouse Keybinds 0 Fullscreen 1 Font 36/Smallcaps Map View 50x40 Zoom Use 0% Tactical HUD 0 Map Filters NONE Filters NONE Steam 1 RUN: d864a545-cb5c-461d-8cb1-041ca5d5e93f